[Event "Red Bull Chess Masters 2018"]
[Site "Istanbul"]
[Date "2018.10.20"]
[Round "3.2"]
[White "Sahin, Handenur"]
[Black "Eraslan, Ecem"]
[Result "1-0"]
[ECO "C06"]
[WhiteElo "1998"]
[BlackElo "1290"]
[Annotator "NA"]
[PlyCount "125"]
[EventDate "2018.10.19"]
[EventType "team-tourn"]
[EventCountry "TUR"]
[SourceTitle "playchess.com"]
[Source "ChessBase"]
[SourceQuality "1"]
[TimeControl "600+5"]

1. e4 {[%emt 0:00:05]} e6 {[%emt 0:00:05]} 2. d4 {[%emt 0:00:05]} d5 {[%emt 0:00:00]} 3. Nd2 {[%emt 0:00:03]} Nf6 {[%emt 0:00:03]} 4. e5 {[%emt 0:00:05]} Nfd7 {[%emt 0:00:05]} 5. Bd3 {[%emt 0:00:01]} c5 {[%emt 0:00:00]} 6. c3 {[%emt 0:00:03]} Nc6 {[%emt 0:00:02]} 7. Ne2 {[%emt 0:00:05]} cxd4 {[%emt 0:00:05]} 8. cxd4 {[%emt 0:00:05]} f6 {[%emt 0:00:05]} 9. exf6 {[%emt 0:00:05]} Nxf6 {[%emt 0:00:05]} 10. O-O {[%emt 0:00:05]} Bd6 {[%emt 0:00:05]} 11. Nf3 {[%emt 0:00:05]} Qc7 {[%emt 0:00:05]} 12. Bg5 {[%emt 0:00:05]} O-O {[%emt 0:00:05]} 13. Bh4 {[%emt 0:00:00]} Bd7 {[%emt 0:00:38]} 14. Bg3 {[%emt 0:00:15]} Nh5 {[%emt 0:00:34]} 15. Qc2 {[%emt 0:01:09]} h6 {[%emt 0:00:13]} 16. Bxd6 {[%emt 0:00:48]} Qxd6 {[%emt 0:00:03]} 17. Bg6 {[%emt 0:00:10]} Nf4 {[%emt 0:00:28]} 18. Ng3 {[%emt 0:01:03]} Nxg6 {[%emt 0:00:29]} 19. Qxg6 {[%emt 0:00:02]} Rf6 {[%emt 0:00:18]} 20. Qd3 {[%emt 0:00:11]} a6 {[%emt 0:00:22]} 21. Rfe1 {[%emt 0:00:08]} Rc8 {[%emt 0:01:18]} 22. Rac1 {[%emt 0:00:14]} Rf7 {[%emt 0:00:25]} 23. a3 {[%emt 0:01:31]} Re8 {[%emt 0:01:14]} 24. Ne5 {[%emt 0:00:09]} Nxe5 {[%emt 0:00:22]} 25. Rxe5 {[%emt 0:00:22]} Rc8 {[%emt 0:00:22]} 26. Rce1 {[%emt 0:00:18]} Qb6 {[%emt 0:00:21]} 27. Qd2 {[%emt 0:00:33]} Rc4 {[%emt 0:00:24]} 28. Ne2 {[%emt 0:00:22]} Qb3 {[%emt 0:00:46]} 29. Nc3 {[%emt 0:00:29]} Qb6 {[%emt 0:00:29]} 30. Rd1 {[%emt 0:00:28]} Qd6 {[%emt 0:01:00]} 31. Ne2 {[%emt 0:00:42]} Qb6 {[%emt 0:00:22]} 32. h3 {[%emt 0:00:41]} a5 {[%emt 0:00:35]} 33. Rc1 {[%emt 0:00:43]} Bb5 {[%emt 0:00:29]} 34. Rxc4 {[%emt 0:00:05]} Bxc4 {[%emt 0:00:04]} 35. Nc3 {[%emt 0:00:25]} Rf6 {[%emt 0:00:13]} 36. Na4 {[%emt 0:00:20]} Qc6 {[%emt 0:00:05]} 37. Nc3 {[%emt 0:00:32]} Qb6 {[%emt 0:00:10]} 38. Na4 {[%emt 0:00:05]} Qc6 {[%emt 0:00:00]} 39. Qxa5 {[%emt 0:00:04]} Bb3 {[%emt 0:00:27]} 40. Qa8+ {[%emt 0:00:14]} Kh7 {[%emt 0:00:08]} 41. Nc5 {[%emt 0:00:05]} Bc4 {[%emt 0:00:06]} 42. Qxb7 {[%emt 0:00:02]} Qxb7 {[%emt 0:00:09]} 43. Nxb7 {[%emt 0:00:01]} Bb5 {[%emt 0:00:07]} 44. Nd6 {[%emt 0:00:04]} Bd7 {[%emt 0:00:08]} 45. Nb7 {[%emt 0:00:05]} Rf4 {[%emt 0:00:01]} 46. Nc5 {[%emt 0:00:06]} Bc8 {[%emt 0:00:08]} 47. Nxe6 {[%emt 0:00:05]} Bxe6 {[%emt 0:00:05]} 48. Rxe6 {[%emt 0:00:05]} Rxd4 {[%emt 0:00:05]} 49. Rd6 {[%emt 0:00:05]} Rd1+ {[%emt 0:00:05]} 50. Kh2 {[%emt 0:00:05]} Rb1 {[%emt 0:00:00]} 51. b4 {[%emt 0:00:03]} Ra1 {[%emt 0:00:08]} 52. Rxd5 {[%emt 0:00:05]} Rxa3 {[%emt 0:00:00]} 53. b5 {[%emt 0:00:10]} Rb3 {[%emt 0:00:02]} 54. f3 {[%emt 0:00:06]} Kg6 {[%emt 0:00:04]} 55. Kg3 {[%emt 0:00:00]} Kf6 {[%emt 0:00:02]} 56. Rc5 {[%emt 0:00:03]} Rb4 {[%emt 0:00:07]} 57. Rc6+ {[%emt 0:00:05]} Ke7 {[%emt 0:00:04]} 58. b6 {[%emt 0:00:03]} Kd7 {[%emt 0:00:10]} 59. Rg6 {[%emt 0:00:01]} Kc8 {[%emt 0:00:07]} 60. Rxg7 {[%emt 0:00:05]} Rxb6 {[%emt 0:00:00]} 61. Kg4 {[%emt 0:00:06]} Rb5 {[%emt 0:00:03]} 62. Rg6 {[%emt 0:00:06]} h5+ {[%emt 0:00:00]} 63. Kh4 {[%emt 0:00:03]} 1-0

[Event "Red Bull Chess Masters 2018"]
[Site "Istanbul"]
[Date "2018.10.20"]
[Round "3.2"]
[White "Degirmenci, Yagiz"]
[Black "Eren, Cuneyt"]
[Result "1/2-1/2"]
[ECO "D94"]
[WhiteElo "1881"]
[BlackElo "2084"]
[Annotator "NA"]
[PlyCount "97"]
[EventDate "2018.10.19"]
[EventType "team-tourn"]
[EventCountry "TUR"]
[SourceTitle "playchess.com"]
[Source "ChessBase"]
[SourceQuality "1"]
[TimeControl "600+5"]

1. d4 {[%emt 0:00:05]} Nf6 {[%emt 0:00:05]} 2. Nf3 {[%emt 0:00:05]} g6 {[%emt 0:00:05]} 3. c4 {[%emt 0:00:05]} d5 {[%emt 0:00:05]} 4. e3 {[%emt 0:00:00]} Bg7 {[%emt 0:00:01]} 5. Nc3 {[%emt 0:00:00]} e6 {[%emt 0:00:05]} 6. Be2 {[%emt 0:00:00]} O-O {[%emt 0:00:03]} 7. O-O {[%emt 0:00:00]} Nbd7 {[%emt 0:00:05]} 8. b3 {[%emt 0:00:02]} b6 {[%emt 0:00:05]} 9. Bb2 {[%emt 0:00:05]} Bb7 {[%emt 0:00:05]} 10. cxd5 {[%emt 0:00:05]} exd5 {[%emt 0:00:05]} 11. Rc1 {[%emt 0:00:04]} Ne4 {[%emt 0:00:02]} 12. Nxe4 {[%emt 0:00:10]} dxe4 {[%emt 0:00:03]} 13. Ne5 {[%emt 0:00:09]} Nxe5 {[%emt 0:00:20]} 14. dxe5 {[%emt 0:00:02]} Qe7 {[%emt 0:00:24]} 15. Qd4 {[%emt 0:01:24]} c5 {[%emt 0:00:35]} 16. Qa4 {[%emt 0:00:28]} Bxe5 {[%emt 0:00:33]} 17. Bxe5 {[%emt 0:00:05]} Qxe5 {[%emt 0:00:02]} 18. Rcd1 {[%emt 0:00:34]} Rfc8 {[%emt 0:00:12]} 19. Rd2 {[%emt 0:01:25]} Bc6 {[%emt 0:01:19]} 20. Qa6 {[%emt 0:00:04]} Qc7 {[%emt 0:00:24]} 21. Rfd1 {[%emt 0:00:18]} Qb7 {[%emt 0:01:38]} 22. Qa3 {[%emt 0:00:25]} a5 {[%emt 0:00:12]} 23. Qb2 {[%emt 0:00:11]} Qe7 {[%emt 0:00:23]} 24. h3 {[%emt 0:01:50]} Rd8 {[%emt 0:01:11]} 25. Rxd8+ {[%emt 0:00:05]} Rxd8 {[%emt 0:00:05]} 26. Rxd8+ {[%emt 0:00:05]} Qxd8 {[%emt 0:00:05]} 27. Qe5 {[%emt 0:00:00]} h5 {[%emt 0:01:14]} 28. a4 {[%emt 0:00:03]} Bd5 {[%emt 0:00:16]} 29. Bd1 {[%emt 0:01:59]} Be6 {[%emt 0:01:04]} 30. Bc2 {[%emt 0:00:01]} Qd2 {[%emt 0:00:36]} 31. Bxe4 {[%emt 0:00:54]} Qd1+ {[%emt 0:00:05]} 32. Kh2 {[%emt 0:00:02]} Qxb3 {[%emt 0:00:06]} 33. Qb8+ {[%emt 0:00:37]} Kh7 {[%emt 0:00:05]} 34. Qe5 {[%emt 0:00:00]} Qxa4 {[%emt 0:00:14]} 35. Qxh5+ {[%emt 0:00:03]} Kg8 {[%emt 0:00:29]} 36. Bxg6 {[%emt 0:00:05]} fxg6 {[%emt 0:00:11]} 37. Qxg6+ {[%emt 0:00:05]} Kf8 {[%emt 0:00:05]} 38. Qxe6 {[%emt 0:00:00]} c4 {[%emt 0:00:10]} 39. Qxb6 {[%emt 0:00:03]} Qb4 {[%emt 0:00:05]} 40. Qd8+ {[%emt 0:00:05]} Kf7 {[%emt 0:00:05]} 41. Qd7+ {[%emt 0:00:19]} Kf8 {[%emt 0:00:01]} 42. Qd8+ {[%emt 0:00:39]} Kf7 {[%emt 0:00:05]} 43. Qd7+ {[%emt 0:00:05]} Kf8 {[%emt 0:00:00]} 44. Qd8+ {[%emt 0:00:16]} Kf7 {[%emt 0:00:03]} 45. f4 {[%emt 0:00:23]} c3 {[%emt 0:00:08]} 46. f5 {[%emt 0:00:08]} Qc5 {[%emt 0:00:09]} 47. Qd7+ {[%emt 0:00:05]} Kf8 {[%emt 0:00:05]} 48. f6 {[%emt 0:00:09]} Qe5+ {[%emt 0:00:17]} 49. Kh1 {[%emt 0:00:10]} 1/2-1/2

[Event "Red Bull Chess Masters 2018"]
[Site "Istanbul"]
[Date "2018.10.20"]
[Round "3.2"]
[White "Celikel, Fatih"]
[Black "Tofan, Ibrahim"]
[Result "1-0"]
[ECO "D78"]
[WhiteElo "1856"]
[BlackElo "2070"]
[Annotator "NA"]
[PlyCount "68"]
[EventDate "2018.10.19"]
[EventType "team-tourn"]
[EventCountry "TUR"]
[SourceTitle "playchess.com"]
[Source "ChessBase"]
[SourceQuality "1"]
[TimeControl "600+5"]

1. Nf3 {[%emt 0:00:05]} Nf6 {[%emt 0:00:05]} 2. d4 {[%emt 0:00:05]} d5 {[%emt 0:00:07]} 3. g3 {[%emt 0:00:13]} g6 {[%emt 0:00:05]} 4. Bg2 {[%emt 0:00:05]} Bg7 {[%emt 0:00:05]} 5. O-O {[%emt 0:00:05]} O-O {[%emt 0:00:05]} 6. c4 {[%emt 0:00:05]} c6 {[%emt 0:00:00]} 7. Ne5 {[%emt 0:00:18]} Nbd7 {[%emt 0:01:11]} 8. Nc3 {[%emt 0:00:42]} e6 {[%emt 0:00:30]} 9. Bg5 {[%emt 0:01:25]} h6 {[%emt 0:00:20]} 10. Bxf6 {[%emt 0:01:11]} Qxf6 {[%emt 0:00:14]} 11. cxd5 {[%emt 0:00:48]} exd5 {[%emt 0:00:27]} 12. f4 {[%emt 0:00:12]} Qd6 {[%emt 0:00:42]} 13. e3 {[%emt 0:00:31]} Nf6 {[%emt 0:00:10]} 14. g4 {[%emt 0:01:22]} Bd7 {[%emt 0:01:08]} 15. Rc1 {[%emt 0:00:53]} Rae8 {[%emt 0:00:27]} 16. h3 {[%emt 0:00:29]} Bc8 {[%emt 0:00:27]} 17. Qa4 {[%emt 0:00:09]} a6 {[%emt 0:00:28]} 18. Qa5 {[%emt 0:00:25]} Qd8 {[%emt 0:00:24]} 19. Qa3 {[%emt 0:00:14]} Nd7 {[%emt 0:00:18]} 20. Na4 {[%emt 0:00:20]} Nxe5 {[%emt 0:00:31]} 21. fxe5 {[%emt 0:00:31]} Qg5 {[%emt 0:00:28]} 22. Nb6 {[%emt 0:00:36]} f6 {[%emt 0:00:38]} 23. Nxc8 {[%emt 0:00:16]} Rxc8 {[%emt 0:00:03]} 24. exf6 {[%emt 0:00:34]} Bxf6 {[%emt 0:00:07]} 25. Rf3 {[%emt 0:00:02]} Bxd4 {[%emt 0:00:52]} 26. h4 {[%emt 0:00:22]} Qxg4 {[%emt 0:01:03]} 27. exd4 {[%emt 0:00:10]} Qxd4+ {[%emt 0:00:57]} 28. Qe3 {[%emt 0:00:02]} Qxe3+ {[%emt 0:00:17]} 29. Rxe3 {[%emt 0:00:05]} Rfe8 {[%emt 0:00:05]} 30. Rb3 {[%emt 0:00:05]} Rb8 {[%emt 0:00:05]} 31. Rg3 {[%emt 0:00:05]} Kg7 {[%emt 0:00:05]} 32. Rc2 {[%emt 0:00:05]} Re5 {[%emt 0:00:13]} 33. Rb3 {[%emt 0:00:02]} Rh5 {[%emt 0:00:05]} 34. Rxc6 {[%emt 0:00:01]} bxc6 {[%emt 0:00:08]} 1-0

[Event "Red Bull Chess Masters 2018"]
[Site "Istanbul"]
[Date "2018.10.20"]
[Round "3.2"]
[White "Dai, Irmak"]
[Black "Tofan, Zeynep"]
[Result "1-0"]
[ECO "C66"]
[WhiteElo "1854"]
[BlackElo "1058"]
[Annotator "NA"]
[PlyCount "63"]
[EventDate "2018.10.19"]
[EventType "team-tourn"]
[EventCountry "TUR"]
[SourceTitle "playchess.com"]
[Source "ChessBase"]
[SourceQuality "1"]
[TimeControl "600+5"]

1. e4 {[%emt 0:00:05]} e5 {[%emt 0:00:05]} 2. Nf3 {[%emt 0:00:05]} Nc6 {[%emt 0:00:05]} 3. Bb5 {[%emt 0:00:05]} d6 {[%emt 0:00:05]} 4. O-O {[%emt 0:00:05]} Bd7 {[%emt 0:00:00]} 5. Re1 {[%emt 0:00:00]} Nf6 {[%emt 0:00:00]} 6. c3 {[%emt 0:00:00]} Be7 {[%emt 0:00:02]} 7. h3 {[%emt 0:00:00]} Qc8 {[%emt 0:00:21]} 8. d4 {[%emt 0:01:05]} exd4 {[%emt 0:01:38]} 9. cxd4 {[%emt 0:00:02]} a6 {[%emt 0:01:35]} 10. Bf1 {[%emt 0:01:06]} O-O {[%emt 0:00:12]} 11. Nc3 {[%emt 0:00:05]} Re8 {[%emt 0:00:38]} 12. e5 {[%emt 0:01:58]} dxe5 {[%emt 0:01:51]} 13. dxe5 {[%emt 0:00:05]} Nh5 {[%emt 0:00:05]} 14. g4 {[%emt 0:00:05]} Bxg4 {[%emt 0:00:05]} 15. hxg4 {[%emt 0:00:05]} Qxg4+ {[%emt 0:00:05]} 16. Kh1 {[%emt 0:00:53]} Rad8 {[%emt 0:01:07]} 17. Qe2 {[%emt 0:00:14]} Bc5 {[%emt 0:01:33]} 18. Qe4 {[%emt 0:02:50]} Qxe4 {[%emt 0:00:49]} 19. Rxe4 {[%emt 0:00:01]} Bxf2 {[%emt 0:00:17]} 20. Kg2 {[%emt 0:00:05]} Bb6 {[%emt 0:00:14]} 21. Bg5 {[%emt 0:00:52]} Rd7 {[%emt 0:00:01]} 22. Bc4 {[%emt 0:00:35]} h6 {[%emt 0:00:01]} 23. Be3 {[%emt 0:00:35]} Bxe3 {[%emt 0:00:05]} 24. Rxe3 {[%emt 0:00:04]} Rde7 {[%emt 0:00:04]} 25. Rae1 {[%emt 0:00:05]} Nf4+ {[%emt 0:00:10]} 26. Kg3 {[%emt 0:00:16]} Ng6 {[%emt 0:00:01]} 27. Nd5 {[%emt 0:00:21]} Rd7 {[%emt 0:00:21]} 28. e6 {[%emt 0:00:13]} fxe6 {[%emt 0:00:18]} 29. Rxe6 {[%emt 0:00:02]} Kh7 {[%emt 0:00:15]} 30. Rxe8 {[%emt 0:00:02]} b5 {[%emt 0:00:16]} 31. Rh1 {[%emt 0:00:05]} bxc4 {[%emt 0:00:05]} 32. Ng5# {[%emt 0:00:05]} 1-0

[Event "Red Bull Chess Masters 2018"]
[Site "Istanbul"]
[Date "2018.10.20"]
[Round "3.2"]
[White "Yarar, Muammer Atakan"]
[Black "Isik, Alparslan"]
[Result "0-1"]
[ECO "E94"]
[WhiteElo "1784"]
[BlackElo "2220"]
[Annotator "NA"]
[PlyCount "82"]
[EventDate "2018.10.19"]
[EventType "team-tourn"]
[EventCountry "TUR"]
[SourceTitle "playchess.com"]
[Source "ChessBase"]
[SourceQuality "1"]
[TimeControl "600+5"]

1. d4 {[%emt 0:00:05]} d6 {[%emt 0:00:05]} 2. Nf3 {[%emt 0:00:05]} Nf6 {[%emt 0:00:05]} 3. c4 {[%emt 0:00:05]} g6 {[%emt 0:00:05]} 4. Nc3 {[%emt 0:00:05]} Bg7 {[%emt 0:00:05]} 5. e4 {[%emt 0:00:05]} O-O {[%emt 0:00:05]} 6. Be2 {[%emt 0:00:05]} e5 {[%emt 0:00:05]} 7. Be3 {[%emt 0:00:00]} exd4 {[%emt 0:00:00]} 8. Nxd4 {[%emt 0:00:00]} Re8 {[%emt 0:00:00]} 9. f3 {[%emt 0:00:16]} Nc6 {[%emt 0:00:01]} 10. O-O {[%emt 0:00:11]} Nh5 {[%emt 0:00:00]} 11. Qd2 {[%emt 0:00:29]} Nf4 {[%emt 0:00:29]} 12. Nxc6 {[%emt 0:01:58]} Nxe2+ {[%emt 0:00:05]} 13. Nxe2 {[%emt 0:00:10]} bxc6 {[%emt 0:00:04]} 14. Nd4 {[%emt 0:00:23] E94: Königsindisch (Klassisches System)} (14. Bd4 Bxd4+ 15. Nxd4 c5 16. Ne2 Bd7 17. Nc3 Bc6 18. b3 Rb8 19. Qc2 Qh4 20. Rad1 Re5 21. Qf2 Qf6 {½-½ (31) Lenic,L (2639)-Bachmann,A (2603) Rhodes 2015}) 14... c5 {[%emt 0:00:38]} 15. Ne2 {[%emt 0:00:09]} Be6 {[%emt 0:00:12]} 16. Rac1 {[%emt 0:00:09]} a5 {[%emt 0:01:30]} 17. Nf4 {[%emt 0:00:33]} Qf6 $146 {[%emt 0:00:27]} ({Vorgänger:} 17... a4 18. Nxe6 Rxe6 19. Rfd1 Qe8 20. Bf2 Rb8 21. Rb1 Rb4 {½-½ (38) Nilsson,M (2145)-Sirigos,N (2290) Siofok 1996}) 18. b3 {[%emt 0:00:12]} Reb8 {[%emt 0:00:20]} 19. Rb1 {[%emt 0:02:04]} a4 {[%emt 0:01:09]} 20. Nd5 {[%emt 0:00:35]} Qd8 {[%emt 0:00:10]} 21. Bg5 {[%emt 0:00:41]} f6 {[%emt 0:00:41]} 22. Be3 {[%emt 0:00:40]} Qd7 {[%emt 0:01:34]} 23. Nc3 {[%emt 0:00:28]} axb3 {[%emt 0:00:12]} 24. axb3 {[%emt 0:00:02]} f5 {[%emt 0:00:18]} 25. Nd5 {[%emt 0:00:35]} Rb7 {[%emt 0:01:02]} 26. Bh6 {[%emt 0:00:21]} Bh8 {[%emt 0:00:39]} 27. Bg5 {[%emt 0:00:14]} Qf7 $11 {[%emt 0:00:33]} 28. Rfe1 {[%emt 0:00:30]} Rab8 {[%emt 0:00:36]} 29. exf5 {[%emt 0:00:35]} Bxf5 {[%emt 0:00:56]} 30. Re7 {[%emt 0:00:30]} Qf8 {[%emt 0:00:05]} 31. Rxh7 {[%emt 0:00:05]} Kxh7 {[%emt 0:00:05]} 32. Re1 {[%emt 0:00:12]} Re8 {[%emt 0:00:17]} 33. Be7 {[%emt 0:00:05]} Qf7 {[%emt 0:00:05]} 34. Qg5 {[%emt 0:00:00]} c6 {[%emt 0:00:08]} 35. Qh4+ {[%emt 0:00:04]} Kg8 {[%emt 0:00:00]} 36. Bf6 {[%emt 0:00:15]} Rxe1+ {[%emt 0:00:00]} 37. Kf2 {[%emt 0:00:00]} Bxf6 {[%emt 0:00:07]} 38. Nxf6+ {[%emt 0:00:01]} Kg7 {[%emt 0:00:01]} 39. Qh7+ {[%emt 0:00:13]} Kxf6 {[%emt 0:00:05]} 40. Qh8+ {[%emt 0:00:05]} Qg7 {[%emt 0:00:05]} 41. Qd8+ {[%emt 0:00:05]} Ree7 {[%emt 0:00:00]} 0-1

[Event "Red Bull Chess Masters 2018"]
[Site "Istanbul"]
[Date "2018.10.20"]
[Round "3.2"]
[White "Sahin, Hayrun Nisa"]
[Black "Incecik, Seyma Zeynep"]
[Result "1-0"]
[ECO "B01"]
[WhiteElo "1708"]
[BlackElo "1796"]
[Annotator "NA"]
[PlyCount "47"]
[EventDate "2018.10.19"]
[EventType "team-tourn"]
[EventCountry "TUR"]
[SourceTitle "playchess.com"]
[Source "ChessBase"]
[SourceQuality "1"]
[TimeControl "600+5"]

1. e4 {[%emt 0:00:05]} d5 {[%emt 0:00:05]} 2. exd5 {[%emt 0:00:05]} Qxd5 {[%emt 0:00:05]} 3. Nc3 {[%emt 0:00:05]} Qa5 {[%emt 0:00:00]} 4. Bc4 {[%emt 0:00:00]} Nf6 {[%emt 0:00:02]} 5. d3 {[%emt 0:00:00]} c6 {[%emt 0:00:05]} 6. Bd2 {[%emt 0:00:04]} Qc7 {[%emt 0:00:02]} 7. Qe2 {[%emt 0:00:00]} Bf5 {[%emt 0:00:05]} 8. h3 {[%emt 0:00:01]} e6 {[%emt 0:00:05]} 9. g4 {[%emt 0:00:05]} Bg6 {[%emt 0:00:05]} 10. f4 {[%emt 0:00:00]} Bc5 {[%emt 0:01:32]} 11. O-O-O {[%emt 0:00:37]} Qe7 {[%emt 0:02:10]} 12. Re1 {[%emt 0:00:43]} Nbd7 {[%emt 0:00:10]} 13. Nf3 {[%emt 0:01:46]} Nb6 {[%emt 0:00:23]} 14. Bb3 {[%emt 0:01:04]} Nbd5 {[%emt 0:02:34]} 15. Rh2 {[%emt 0:00:17]} Bd6 {[%emt 0:00:40]} 16. Nxd5 {[%emt 0:00:30]} Nxd5 {[%emt 0:00:05]} 17. Bxd5 {[%emt 0:00:05]} cxd5 {[%emt 0:00:05]} 18. Rg2 {[%emt 0:00:05]} Kd8 {[%emt 0:01:49]} 19. Nd4 {[%emt 0:03:20]} Bc5 {[%emt 0:00:27]} 20. Nb3 {[%emt 0:00:06]} Bd6 {[%emt 0:00:23]} 21. Rf2 {[%emt 0:00:09]} Qh4 {[%emt 0:00:26]} 22. Qf3 {[%emt 0:00:31]} Rc8 {[%emt 0:00:12]} 23. f5 {[%emt 0:00:04]} exf5 {[%emt 0:00:10]} 24. gxf5 {[%emt 0:00:24]} 1-0